[Event "Titled Tuesday Blitz May 11 2021"]
[White "Le, Tuan Minh"]
[Black "Idani, Pouya"]
[WhiteFideId "12401153"]
[BlackFideId "12510130"]
[WhiteElo "2450"]
[BlackElo "2610"]
[Result "1-0"]
[Round "05"]
[TimeControl "180+1"]
[Date "2021.05.11"]
[WhiteClock "0:00:09"]
[BlackClock "0:00:03"]

1. d4 {[%clk 0:03:00]}  Nf6 {[%clk 0:02:59]} 2. Nf3 {[%clk 0:03:00]}  d5 {[%clk 0:02:57]} 3. Bf4 {[%clk 0:03:00]}  c5 {[%clk 0:02:57]} 4. c3 {[%clk 0:03:00]}  Nc6 {[%clk 0:02:56]} 5. e3 {[%clk 0:03:01]}  Qb6 {[%clk 0:02:56]} 6. Qc2 {[%clk 0:03:01]}  g6 {[%clk 0:02:53]} 7. Nbd2 {[%clk 0:03:01]}  Bf5 {[%clk 0:02:52]} 8. dxc5 {[%clk 0:03:01]}  Bxc2 {[%clk 0:02:38]} 9. cxb6 {[%clk 0:03:01]}  axb6 {[%clk 0:02:39]} 10. Nd4 {[%clk 0:03:00]}  Nxd4 {[%clk 0:02:34]} 11. exd4 {[%clk 0:02:59]}  Ba4 {[%clk 0:02:34]} 12. Bd3 {[%clk 0:02:54]}  Bg7 {[%clk 0:02:34]} 13. O-O {[%clk 0:02:52]}  e6 {[%clk 0:02:27]} 14. Rfe1 {[%clk 0:02:48]}  O-O {[%clk 0:02:25]} 15. Nf3 {[%clk 0:02:46]}  Nd7 {[%clk 0:02:23]} 16. h4 {[%clk 0:02:41]}  h5 {[%clk 0:02:23]} 17. Re2 {[%clk 0:02:27]}  Ra5 {[%clk 0:02:21]} 18. Rd2 {[%clk 0:02:10]}  Rc8 {[%clk 0:02:16]} 19. Re1 {[%clk 0:02:05]}  Bc6 {[%clk 0:02:11]} 20. a3 {[%clk 0:02:04]}  b5 {[%clk 0:01:59]} 21. Ng5 {[%clk 0:02:03]}  Raa8 {[%clk 0:01:49]} 22. Rde2 {[%clk 0:01:57]}  Nf8 {[%clk 0:01:46]} 23. f3 {[%clk 0:01:56]}  Bd7 {[%clk 0:01:43]} 24. Nh3 {[%clk 0:01:38]}  Bf6 {[%clk 0:01:38]} 25. Bg5 {[%clk 0:01:33]}  Nh7 {[%clk 0:01:36]} 26. Bxf6 {[%clk 0:01:32]}  Nxf6 {[%clk 0:01:37]} 27. Kf2 {[%clk 0:01:32]}  Kg7 {[%clk 0:01:37]} 28. Nf4 {[%clk 0:01:31]}  Rh8 {[%clk 0:01:33]} 29. Re5 {[%clk 0:01:29]}  Ne8 {[%clk 0:01:30]} 30. Rh1 {[%clk 0:01:04]}  Nd6 {[%clk 0:01:28]} 31. Ree1 {[%clk 0:00:59]}  Nc4 {[%clk 0:01:22]} 32. Bxc4 {[%clk 0:00:59]}  bxc4 {[%clk 0:01:23]} 33. g4 {[%clk 0:00:56]}  hxg4 {[%clk 0:01:22]} 34. fxg4 {[%clk 0:00:57]}  Ra6 {[%clk 0:01:21]} 35. Kg3 {[%clk 0:00:57]}  Rb6 {[%clk 0:01:17]} 36. Re2 {[%clk 0:00:57]}  f6 {[%clk 0:01:16]} 37. Rhe1 {[%clk 0:00:52]}  Re8 {[%clk 0:01:07]} 38. Rf2 {[%clk 0:00:39]}  Rd6 {[%clk 0:01:03]} 39. g5 {[%clk 0:00:37]}  fxg5 {[%clk 0:01:01]} 40. hxg5 {[%clk 0:00:38]}  Rf8 {[%clk 0:01:01]} 41. Nh3 {[%clk 0:00:37]}  Rxf2 {[%clk 0:01:00]} 42. Nxf2 {[%clk 0:00:37]}  Rb6 {[%clk 0:01:01]} 43. Re2 {[%clk 0:00:38]}  e5 {[%clk 0:00:58]} 44. Rxe5 {[%clk 0:00:36]}  Bf5 {[%clk 0:00:56]} 45. Re2 {[%clk 0:00:36]}  Kf7 {[%clk 0:00:55]} 46. Kf4 {[%clk 0:00:35]}  Rc6 {[%clk 0:00:52]} 47. Nh1 {[%clk 0:00:29]}  Bd3 {[%clk 0:00:49]} 48. Rh2 {[%clk 0:00:26]}  Ke6 {[%clk 0:00:42]} 49. Nf2 {[%clk 0:00:23]}  Bf5 {[%clk 0:00:42]} 50. Nd1 {[%clk 0:00:23]}  Rc7 {[%clk 0:00:38]} 51. Ne3 {[%clk 0:00:24]}  Be4 {[%clk 0:00:38]} 52. Ng4 {[%clk 0:00:24]}  Rc6 {[%clk 0:00:37]} 53. Nf6 {[%clk 0:00:24]}  Bd3 {[%clk 0:00:31]} 54. Ng4 {[%clk 0:00:18]}  Rb6 {[%clk 0:00:30]} 55. Ne5 {[%clk 0:00:17]}  Bf5 {[%clk 0:00:30]} 56. Re2 {[%clk 0:00:18]}  Kd6 {[%clk 0:00:28]} 57. Nf7+ {[%clk 0:00:17]}  Kd7 {[%clk 0:00:27]} 58. Ne5+ {[%clk 0:00:17]}  Kd6 {[%clk 0:00:27]} 59. Ke3 {[%clk 0:00:16]}  Ra6 {[%clk 0:00:21]} 60. Kd2 {[%clk 0:00:15]}  Ra8 {[%clk 0:00:19]} 61. Rh2 {[%clk 0:00:15]}  Rf8 {[%clk 0:00:19]} 62. Rh7 {[%clk 0:00:14]}  Be4 {[%clk 0:00:19]} 63. Rf7 {[%clk 0:00:10]}  Rxf7 {[%clk 0:00:17]} 64. Nxf7+ {[%clk 0:00:11]}  Ke7 {[%clk 0:00:17]} 65. Nh6 {[%clk 0:00:10]}  Ke6 {[%clk 0:00:17]} 66. Ke3 {[%clk 0:00:11]}  Bc2 {[%clk 0:00:16]} 67. Kf4 {[%clk 0:00:12]}  Bd1 {[%clk 0:00:17]} 68. Ng8 {[%clk 0:00:13]}  Bc2 {[%clk 0:00:17]} 69. Nf6 {[%clk 0:00:13]}  b5 {[%clk 0:00:16]} 70. Ne8 {[%clk 0:00:11]}  Kd7 {[%clk 0:00:16]} 71. Nf6+ {[%clk 0:00:11]}  Ke6 {[%clk 0:00:16]} 72. Ng4 {[%clk 0:00:12]}  Bf5 {[%clk 0:00:16]} 73. Ne5 {[%clk 0:00:13]}  Bd3 {[%clk 0:00:15]} 74. Nc6 {[%clk 0:00:13]}  Bc2 {[%clk 0:00:11]} 75. Na7 {[%clk 0:00:09]}  Ba4 {[%clk 0:00:12]} 76. Kg4 {[%clk 0:00:04]}  Kd7 {[%clk 0:00:11]} 77. Kf4 {[%clk 0:00:04]}  Ke6 {[%clk 0:00:08]} 78. Nc6 {[%clk 0:00:04]}  Kd6 {[%clk 0:00:07]} 79. Nd8 {[%clk 0:00:02]}  Bc2 {[%clk 0:00:06]} 80. Nf7+ {[%clk 0:00:02]}  Ke6 {[%clk 0:00:07]} 81. Ne5 {[%clk 0:00:03]}  Bf5 {[%clk 0:00:07]} 82. Nc6 {[%clk 0:00:03]}  Bc2 {[%clk 0:00:07]} 83. Nb4 {[%clk 0:00:03]}  Bf5 {[%clk 0:00:07]} 84. Na6 {[%clk 0:00:04]}  Kd6 {[%clk 0:00:07]} 85. Nc5 {[%clk 0:00:05]}  Bc2 {[%clk 0:00:07]} 86. Nb7+ {[%clk 0:00:05]}  Kc7 {[%clk 0:00:06]} 87. Nc5 {[%clk 0:00:06]}  Kd6 {[%clk 0:00:06]} 88. Kf3 {[%clk 0:00:06]}  Bf5 {[%clk 0:00:06]} 89. Kg3 {[%clk 0:00:07]}  Bc2 {[%clk 0:00:06]} 90. Kf4 {[%clk 0:00:08]}  Bd1 {[%clk 0:00:06]} 91. Nb7+ {[%clk 0:00:07]}  Kc7 {[%clk 0:00:06]} 92. Nc5 {[%clk 0:00:04]}  Kd6 {[%clk 0:00:06]} 93. a4 {[%clk 0:00:05]}  bxa4 {[%clk 0:00:05]} 94. Ke3 {[%clk 0:00:05]}  Bb3 {[%clk 0:00:05]} 95. Kd2 {[%clk 0:00:06]}  Ke7 {[%clk 0:00:05]} 96. Kc1 {[%clk 0:00:05]}  Kd6 {[%clk 0:00:05]} 97. Kd2 {[%clk 0:00:05]}  Ke7 {[%clk 0:00:06]} 98. Ke3 {[%clk 0:00:06]}  Kd6 {[%clk 0:00:06]} 99. Ke2 {[%clk 0:00:06]}  Ke7 {[%clk 0:00:06]} 100. Kf3 {[%clk 0:00:07]}  Kd6 {[%clk 0:00:06]} 101. Kf4 {[%clk 0:00:07]}  Bc2 {[%clk 0:00:06]} 102. Na6 {[%clk 0:00:07]}  Bb3 {[%clk 0:00:06]} 103. Nb4 {[%clk 0:00:07]}  Bd1 {[%clk 0:00:06]} 104. Na2 {[%clk 0:00:08]}  Bc2 {[%clk 0:00:06]} 105. Nc1 {[%clk 0:00:08]}  Ke6 {[%clk 0:00:05]} 106. Ne2 {[%clk 0:00:08]}  Bd3 {[%clk 0:00:05]} 107. Ng1 {[%clk 0:00:08]}  Be4 {[%clk 0:00:05]} 108. Nh3 {[%clk 0:00:08]}  Bf5 {[%clk 0:00:05]} 109. Nf2 {[%clk 0:00:09]}  Kd6 {[%clk 0:00:05]} 110. Nd1 {[%clk 0:00:09]}  Ke6 {[%clk 0:00:05]} 111. Ne3 {[%clk 0:00:09]}  Bb1 {[%clk 0:00:03]} 112. Kg4 {[%clk 0:00:09]}  Bf5+ {[%clk 0:00:03]} 113. Nxf5 {[%clk 0:00:09]} 1-0


[Site "https://www.chess.com"]

[Event "Titled Tuesday Blitz May 11 2021"]
[White "Matlakov, Maxim"]
[Black "Gusarov, Grigory"]
[WhiteFideId "4168003"]
[BlackFideId "24102172"]
[WhiteElo "2760"]
[BlackElo "2241"]
[Result "1-0"]
[Round "05"]
[TimeControl "180+1"]
[Date "2021.05.11"]
[WhiteClock "0:01:09"]
[BlackClock "0:00:14"]

1. Nf3 {[%clk 0:03:00]}  d5 {[%clk 0:02:47]} 2. b3 {[%clk 0:03:00]}  c6 {[%clk 0:02:47]} 3. Bb2 {[%clk 0:03:00]}  Nf6 {[%clk 0:02:47]} 4. e3 {[%clk 0:02:57]}  Bg4 {[%clk 0:02:47]} 5. h3 {[%clk 0:02:57]}  Bxf3 {[%clk 0:02:46]} 6. Qxf3 {[%clk 0:02:57]}  Nbd7 {[%clk 0:02:47]} 7. g4 {[%clk 0:02:55]}  h6 {[%clk 0:02:47]} 8. h4 {[%clk 0:02:54]}  e5 {[%clk 0:02:46]} 9. Nc3 {[%clk 0:02:49]}  Bd6 {[%clk 0:02:44]} 10. O-O-O {[%clk 0:02:48]}  e4 {[%clk 0:02:44]} 11. Qg2 {[%clk 0:02:48]}  Qe7 {[%clk 0:02:42]} 12. g5 {[%clk 0:02:47]}  Ng8 {[%clk 0:02:27]} 13. d3 {[%clk 0:02:17]}  exd3 {[%clk 0:02:25]} 14. Bxd3 {[%clk 0:02:17]}  Ba3 {[%clk 0:02:25]} 15. gxh6 {[%clk 0:02:07]}  Bxb2+ {[%clk 0:02:24]} 16. Kxb2 {[%clk 0:02:08]}  gxh6 {[%clk 0:02:23]} 17. Bf5 {[%clk 0:01:58]}  Ngf6 {[%clk 0:02:18]} 18. e4 {[%clk 0:01:57]}  dxe4 {[%clk 0:02:10]} 19. Nxe4 {[%clk 0:01:55]}  Qe5+ {[%clk 0:02:10]} 20. Kb1 {[%clk 0:01:53]}  O-O-O {[%clk 0:01:48]} 21. f4 {[%clk 0:01:51]}  Qxf4 {[%clk 0:01:38]} 22. Rhf1 {[%clk 0:01:45]}  Nxe4 {[%clk 0:00:55]} 23. Rxf4 {[%clk 0:01:36]}  Nc3+ {[%clk 0:00:55]} 24. Kc1 {[%clk 0:01:34]}  Nxd1 {[%clk 0:00:52]} 25. Kxd1 {[%clk 0:01:33]}  Kb8 {[%clk 0:00:52]} 26. Rd4 {[%clk 0:01:30]}  Nb6 {[%clk 0:00:45]} 27. Qg3+ {[%clk 0:01:27]}  Ka8 {[%clk 0:00:45]} 28. Rxd8+ {[%clk 0:01:25]}  Rxd8+ {[%clk 0:00:44]} 29. Kc1 {[%clk 0:01:26]}  Nd5 {[%clk 0:00:44]} 30. Qe5 {[%clk 0:01:18]}  f6 {[%clk 0:00:39]} 31. Qd4 {[%clk 0:01:14]}  Rf8 {[%clk 0:00:36]} 32. Be6 {[%clk 0:01:12]}  Nb6 {[%clk 0:00:27]} 33. Qd6 {[%clk 0:01:11]}  Re8 {[%clk 0:00:25]} 34. Bf7 {[%clk 0:01:11]}  Rb8 {[%clk 0:00:14]} 35. Qxf6 {[%clk 0:01:09]} 1-0


[Site "https://www.chess.com"]

[Event "Titled Tuesday Blitz May 11 2021"]
[White "Morefield, Jason"]
[Black "Sanal, Vahap"]
[WhiteFideId "30920825"]
[BlackFideId "6300545"]
[WhiteElo "2171"]
[BlackElo "2507"]
[Result "0-1"]
[Round "05"]
[TimeControl "180+1"]
[Date "2021.05.11"]
[WhiteClock "0:00:05"]
[BlackClock "0:00:07"]

1. d4 {[%clk 0:03:00]}  d5 {[%clk 0:02:57]} 2. c4 {[%clk 0:03:00]}  e6 {[%clk 0:02:56]} 3. Nf3 {[%clk 0:03:00]}  a6 {[%clk 0:02:56]} 4. Nc3 {[%clk 0:02:53]}  dxc4 {[%clk 0:02:55]} 5. a4 {[%clk 0:02:51]}  Bb4 {[%clk 0:02:51]} 6. e3 {[%clk 0:02:40]}  Nf6 {[%clk 0:02:45]} 7. Bxc4 {[%clk 0:02:39]}  O-O {[%clk 0:02:43]} 8. O-O {[%clk 0:02:39]}  b6 {[%clk 0:02:44]} 9. Bd2 {[%clk 0:02:33]}  Bb7 {[%clk 0:02:42]} 10. Rc1 {[%clk 0:02:32]}  Nbd7 {[%clk 0:02:38]} 11. Qe2 {[%clk 0:02:30]}  c5 {[%clk 0:02:26]} 12. Rfd1 {[%clk 0:02:24]}  Qe7 {[%clk 0:02:13]} 13. Be1 {[%clk 0:02:19]}  Rfd8 {[%clk 0:02:04]} 14. d5 {[%clk 0:01:47]}  Bxc3 {[%clk 0:01:46]} 15. d6 {[%clk 0:01:46]}  Qe8 {[%clk 0:01:43]} 16. Bxc3 {[%clk 0:01:46]}  Ne4 {[%clk 0:01:41]} 17. Bd3 {[%clk 0:01:18]}  Nxc3 {[%clk 0:01:32]} 18. Rxc3 {[%clk 0:01:17]}  g6 {[%clk 0:01:28]} 19. e4 {[%clk 0:01:12]}  e5 {[%clk 0:01:24]} 20. Bc4 {[%clk 0:01:07]}  h6 {[%clk 0:01:20]} 21. Nh4 {[%clk 0:01:00]}  Kg7 {[%clk 0:01:13]} 22. Rg3 {[%clk 0:00:56]}  Nf6 {[%clk 0:01:06]} 23. f3 {[%clk 0:00:34]}  Bc8 {[%clk 0:01:03]} 24. Nf5+ {[%clk 0:00:28]}  Kh7 {[%clk 0:00:49]} 25. Ne7 {[%clk 0:00:23]}  Nh5 {[%clk 0:00:45]} 26. Bd5 {[%clk 0:00:15]}  Nxg3 {[%clk 0:00:44]} 27. hxg3 {[%clk 0:00:16]}  Rxd6 {[%clk 0:00:39]} 28. Bxa8 {[%clk 0:00:11]}  Qxe7 {[%clk 0:00:39]} 29. Rd5 {[%clk 0:00:08]}  Rxd5 {[%clk 0:00:24]} 30. Bxd5 {[%clk 0:00:09]}  Kg7 {[%clk 0:00:21]} 31. Qd2 {[%clk 0:00:09]}  b5 {[%clk 0:00:18]} 32. axb5 {[%clk 0:00:08]}  axb5 {[%clk 0:00:19]} 33. Qc3 {[%clk 0:00:07]}  b4 {[%clk 0:00:18]} 34. Qc4 {[%clk 0:00:07]}  f6 {[%clk 0:00:18]} 35. Kf2 {[%clk 0:00:08]}  Bd7 {[%clk 0:00:17]} 36. b3 {[%clk 0:00:08]}  Be8 {[%clk 0:00:18]} 37. Qa6 {[%clk 0:00:08]}  Bf7 {[%clk 0:00:17]} 38. Qa8 {[%clk 0:00:08]}  g5 {[%clk 0:00:14]} 39. g4 {[%clk 0:00:08]}  Qc7 {[%clk 0:00:12]} 40. Qa6 {[%clk 0:00:07]}  c4 {[%clk 0:00:09]} 41. bxc4 {[%clk 0:00:05]}  Qb8 {[%clk 0:00:08]} 42. Qa2 {[%clk 0:00:05]}  b3 {[%clk 0:00:08]} 43. Qb2 {[%clk 0:00:05]}  Qb4 {[%clk 0:00:07]} 44. Ke2 {[%clk 0:00:05]}  Be8 {[%clk 0:00:07]} 45. Kd3 {[%clk 0:00:05]}  Ba4 {[%clk 0:00:08]} 46. Qc3 {[%clk 0:00:04]}  Qc5 {[%clk 0:00:06]} 47. Qb2 {[%clk 0:00:04]}  Kf8 {[%clk 0:00:07]} 48. Kc3 {[%clk 0:00:04]}  Qd4+ {[%clk 0:00:06]} 49. Kb4 {[%clk 0:00:05]}  Qxb2 {[%clk 0:00:07]} 0-1


[Site "https://www.chess.com"]

[Event "Titled Tuesday Blitz May 11 2021"]
[White "Narayanan.S.L"]
[Black "Chasin, Nico"]
[WhiteFideId "5058422"]
[BlackFideId "30908477"]
[WhiteElo "2617"]
[BlackElo "2135"]
[Result "1-0"]
[Round "05"]
[TimeControl "180+1"]
[Date "2021.05.11"]
[WhiteClock "0:01:55"]
[BlackClock "0:00:06"]

1. b3 {[%clk 0:03:00]}  e5 {[%clk 0:02:54]} 2. Bb2 {[%clk 0:03:01]}  Nc6 {[%clk 0:02:55]} 3. c4 {[%clk 0:03:00]}  g6 {[%clk 0:02:49]} 4. g3 {[%clk 0:02:58]}  Bg7 {[%clk 0:02:48]} 5. Bg2 {[%clk 0:02:59]}  Nge7 {[%clk 0:02:48]} 6. Nc3 {[%clk 0:02:59]}  d6 {[%clk 0:02:48]} 7. e3 {[%clk 0:02:59]}  O-O {[%clk 0:02:49]} 8. Nge2 {[%clk 0:02:59]}  Nb4 {[%clk 0:02:37]} 9. d3 {[%clk 0:02:56]}  Bf5 {[%clk 0:02:34]} 10. e4 {[%clk 0:02:44]}  Be6 {[%clk 0:02:28]} 11. O-O {[%clk 0:02:44]}  c6 {[%clk 0:02:26]} 12. d4 {[%clk 0:02:44]}  Qd7 {[%clk 0:02:18]} 13. f4 {[%clk 0:02:33]}  exd4 {[%clk 0:01:38]} 14. Nxd4 {[%clk 0:02:33]}  Bg4 {[%clk 0:01:38]} 15. Qd2 {[%clk 0:02:33]}  Rfe8 {[%clk 0:01:12]} 16. f5 {[%clk 0:02:31]}  gxf5 {[%clk 0:01:01]} 17. h3 {[%clk 0:02:31]}  Bh5 {[%clk 0:00:57]} 18. exf5 {[%clk 0:02:31]}  c5 {[%clk 0:00:41]} 19. Nc2 {[%clk 0:02:05]}  Nxc2 {[%clk 0:00:27]} 20. Qxc2 {[%clk 0:02:05]}  Bd4+ {[%clk 0:00:27]} 21. Kh2 {[%clk 0:02:04]}  f6 {[%clk 0:00:21]} 22. Ne4 {[%clk 0:02:04]}  Rf8 {[%clk 0:00:12]} 23. Bxd4 {[%clk 0:02:03]}  cxd4 {[%clk 0:00:12]} 24. Qb2 {[%clk 0:02:01]}  Nc6 {[%clk 0:00:12]} 25. g4 {[%clk 0:01:59]}  Be8 {[%clk 0:00:12]} 26. Rae1 {[%clk 0:01:59]}  Qc7 {[%clk 0:00:12]} 27. Kh1 {[%clk 0:01:58]}  Bd7 {[%clk 0:00:12]} 28. g5 {[%clk 0:01:55]}  fxg5 {[%clk 0:00:12]} 29. Nxg5 {[%clk 0:01:56]}  Bxf5 {[%clk 0:00:08]} 30. Bd5+ {[%clk 0:01:56]}  Kg7 {[%clk 0:00:06]} 31. Rxf5 {[%clk 0:01:55]} 1-0


[Site "https://www.chess.com"]

[Event "Titled Tuesday Blitz May 11 2021"]
[White "Sadhwani, Raunak"]
[Black "Annaberdiyev, Babageldi"]
[WhiteFideId "35093487"]
[BlackFideId "14000385"]
[WhiteElo "2514"]
[BlackElo "2332"]
[Result "0-1"]
[Round "05"]
[TimeControl "180+1"]
[Date "2021.05.11"]
[WhiteClock "0:00:06"]
[BlackClock "0:00:08"]

1. b3 {[%clk 0:03:00]}  d5 {[%clk 0:02:54]} 2. Bb2 {[%clk 0:03:01]}  c6 {[%clk 0:02:47]} 3. Nf3 {[%clk 0:02:57]}  Nf6 {[%clk 0:02:44]} 4. e3 {[%clk 0:02:57]}  g6 {[%clk 0:02:36]} 5. c4 {[%clk 0:02:55]}  Bg7 {[%clk 0:02:32]} 6. Be2 {[%clk 0:02:55]}  O-O {[%clk 0:02:28]} 7. O-O {[%clk 0:02:56]}  Nbd7 {[%clk 0:02:21]} 8. d4 {[%clk 0:02:56]}  Ne4 {[%clk 0:02:18]} 9. Nbd2 {[%clk 0:02:56]}  Nxd2 {[%clk 0:02:10]} 10. Qxd2 {[%clk 0:02:57]}  Nf6 {[%clk 0:02:09]} 11. h3 {[%clk 0:02:58]}  Ne4 {[%clk 0:02:06]} 12. Qc2 {[%clk 0:02:59]}  Bf5 {[%clk 0:02:03]} 13. Bd3 {[%clk 0:02:59]}  e6 {[%clk 0:01:59]} 14. a4 {[%clk 0:02:38]}  h5 {[%clk 0:01:45]} 15. a5 {[%clk 0:02:37]}  a6 {[%clk 0:01:43]} 16. Rfc1 {[%clk 0:02:32]}  Re8 {[%clk 0:01:34]} 17. b4 {[%clk 0:02:17]}  g5 {[%clk 0:01:31]} 18. b5 {[%clk 0:02:05]}  g4 {[%clk 0:01:29]} 19. hxg4 {[%clk 0:02:04]}  hxg4 {[%clk 0:01:29]} 20. Ne5 {[%clk 0:01:59]}  Qh4 {[%clk 0:01:22]} 21. bxc6 {[%clk 0:01:47]}  bxc6 {[%clk 0:01:21]} 22. cxd5 {[%clk 0:00:41]}  cxd5 {[%clk 0:01:19]} 23. Bxe4 {[%clk 0:00:28]}  Bxe4 {[%clk 0:01:18]} 24. Qe2 {[%clk 0:00:29]}  Rab8 {[%clk 0:01:01]} 25. Ba3 {[%clk 0:00:27]}  g3 {[%clk 0:00:51]} 26. fxg3 {[%clk 0:00:20]}  Qxg3 {[%clk 0:00:52]} 27. Nf3 {[%clk 0:00:21]}  Bh6 {[%clk 0:00:34]} 28. Qf2 {[%clk 0:00:18]}  Qxf2+ {[%clk 0:00:34]} 29. Kxf2 {[%clk 0:00:19]}  Rb3 {[%clk 0:00:34]} 30. Re1 {[%clk 0:00:20]}  Rc8 {[%clk 0:00:29]} 31. Bc5 {[%clk 0:00:19]}  Bf8 {[%clk 0:00:18]} 32. Rec1 {[%clk 0:00:14]}  Bh6 {[%clk 0:00:16]} 33. Re1 {[%clk 0:00:13]}  Bf8 {[%clk 0:00:15]} 34. Rac1 {[%clk 0:00:13]}  Rb5 {[%clk 0:00:13]} 35. Bb6 {[%clk 0:00:12]}  Rxc1 {[%clk 0:00:12]} 36. Rxc1 {[%clk 0:00:13]}  Bb4 {[%clk 0:00:12]} 37. Rc8+ {[%clk 0:00:09]}  Kg7 {[%clk 0:00:13]} 38. Ne5 {[%clk 0:00:07]}  Bxa5 {[%clk 0:00:12]} 39. Bxa5 {[%clk 0:00:08]}  Rxa5 {[%clk 0:00:12]} 40. Rc7 {[%clk 0:00:09]}  Ra2+ {[%clk 0:00:12]} 41. Kf1 {[%clk 0:00:09]}  Bg6 {[%clk 0:00:13]} 42. Ra7 {[%clk 0:00:09]}  a5 {[%clk 0:00:11]} 43. Nd7 {[%clk 0:00:09]}  a4 {[%clk 0:00:10]} 44. Nc5 {[%clk 0:00:10]}  a3 {[%clk 0:00:11]} 45. Nxe6+ {[%clk 0:00:10]}  Kf6 {[%clk 0:00:10]} 46. Nc7 {[%clk 0:00:11]}  Ra1+ {[%clk 0:00:11]} 47. Kf2 {[%clk 0:00:11]}  Be4 {[%clk 0:00:11]} 48. Ne8+ {[%clk 0:00:09]}  Kg6 {[%clk 0:00:10]} 49. Nd6 {[%clk 0:00:09]}  a2 {[%clk 0:00:10]} 50. Nxe4 {[%clk 0:00:09]}  dxe4 {[%clk 0:00:11]} 51. Kg3 {[%clk 0:00:10]}  f5 {[%clk 0:00:11]} 52. Ra6+ {[%clk 0:00:10]}  Kg5 {[%clk 0:00:11]} 53. Kf2 {[%clk 0:00:10]}  f4 {[%clk 0:00:10]} 54. Ra5+ {[%clk 0:00:10]}  Kg4 {[%clk 0:00:10]} 55. exf4 {[%clk 0:00:06]}  Kxf4 {[%clk 0:00:11]} 56. g3+ {[%clk 0:00:06]}  Kg4 {[%clk 0:00:11]} 57. d5 {[%clk 0:00:06]}  e3+ {[%clk 0:00:10]} 58. Kxe3 {[%clk 0:00:06]}  Re1+ {[%clk 0:00:08]} 59. Kd4 {[%clk 0:00:06]}  a1=Q+ {[%clk 0:00:09]} 60. Rxa1 {[%clk 0:00:07]}  Rxa1 {[%clk 0:00:10]} 61. Ke5 {[%clk 0:00:08]}  Kg5 {[%clk 0:00:09]} 62. d6 {[%clk 0:00:07]}  Re1+ {[%clk 0:00:09]} 63. Kd5 {[%clk 0:00:07]}  Kf6 {[%clk 0:00:10]} 64. g4 {[%clk 0:00:06]}  Rd1+ {[%clk 0:00:08]} 65. Kc6 {[%clk 0:00:06]}  Ke6 {[%clk 0:00:08]} 0-1


[Site "https://www.chess.com"]

[Event "Titled Tuesday Blitz May 11 2021"]
[White "Salinas Herrera, Pablo"]
[Black "Praggnanandhaa R"]
[WhiteFideId "3407128"]
[BlackFideId "25059530"]
[WhiteElo "2541"]
[BlackElo "2555"]
[Result "0-1"]
[Round "05"]
[TimeControl "180+1"]
[Date "2021.05.11"]
[WhiteClock "0:00:01"]
[BlackClock "0:00:03"]

1. d4 {[%clk 0:03:00]}  Nf6 {[%clk 0:02:58]} 2. Bf4 {[%clk 0:02:51]}  g6 {[%clk 0:02:55]} 3. Nc3 {[%clk 0:02:51]}  d5 {[%clk 0:02:54]} 4. e3 {[%clk 0:02:51]}  Bg7 {[%clk 0:02:53]} 5. Be2 {[%clk 0:02:51]}  O-O {[%clk 0:02:50]} 6. h4 {[%clk 0:02:51]}  h5 {[%clk 0:02:50]} 7. Nf3 {[%clk 0:02:44]}  Bf5 {[%clk 0:02:50]} 8. Qd2 {[%clk 0:02:43]}  c5 {[%clk 0:02:49]} 9. dxc5 {[%clk 0:02:43]}  Nbd7 {[%clk 0:02:38]} 10. Nd4 {[%clk 0:02:35]}  Nxc5 {[%clk 0:02:24]} 11. Nxf5 {[%clk 0:02:34]}  gxf5 {[%clk 0:02:25]} 12. f3 {[%clk 0:02:19]}  Qb6 {[%clk 0:02:08]} 13. Rb1 {[%clk 0:02:07]}  Rfd8 {[%clk 0:02:01]} 14. Nb5 {[%clk 0:01:13]}  Rac8 {[%clk 0:01:27]} 15. Nd4 {[%clk 0:01:07]}  e6 {[%clk 0:01:21]} 16. O-O {[%clk 0:00:56]}  Ncd7 {[%clk 0:01:20]} 17. Bg5 {[%clk 0:00:53]}  Ne5 {[%clk 0:01:16]} 18. c3 {[%clk 0:00:47]}  a6 {[%clk 0:01:14]} 19. Kh1 {[%clk 0:00:43]}  Re8 {[%clk 0:01:14]} 20. Qe1 {[%clk 0:00:39]}  Ng6 {[%clk 0:01:12]} 21. Qg3 {[%clk 0:00:36]}  Qc7 {[%clk 0:01:06]} 22. Qh3 {[%clk 0:00:20]}  f4 {[%clk 0:00:50]} 23. Bd3 {[%clk 0:00:13]}  e5 {[%clk 0:00:43]} 24. Nf5 {[%clk 0:00:13]}  fxe3 {[%clk 0:00:43]} 25. Nxg7 {[%clk 0:00:13]}  Kxg7 {[%clk 0:00:43]} 26. Bxe3 {[%clk 0:00:12]}  Rcd8 {[%clk 0:00:37]} 27. Bg5 {[%clk 0:00:12]}  Rd6 {[%clk 0:00:37]} 28. Rbe1 {[%clk 0:00:12]}  b5 {[%clk 0:00:30]} 29. Qf5 {[%clk 0:00:11]}  Nh7 {[%clk 0:00:27]} 30. Bc1 {[%clk 0:00:10]}  Qd8 {[%clk 0:00:23]} 31. g3 {[%clk 0:00:08]}  Nf6 {[%clk 0:00:15]} 32. Qg5 {[%clk 0:00:08]}  e4 {[%clk 0:00:13]} 33. fxe4 {[%clk 0:00:09]}  dxe4 {[%clk 0:00:14]} 34. Bc2 {[%clk 0:00:08]}  Qd7 {[%clk 0:00:10]} 35. Qf5 {[%clk 0:00:06]}  Re5 {[%clk 0:00:09]} 36. Qxd7 {[%clk 0:00:06]}  Rxd7 {[%clk 0:00:07]} 37. Bg5 {[%clk 0:00:06]}  Re6 {[%clk 0:00:05]} 38. Bxf6+ {[%clk 0:00:06]}  Rxf6 {[%clk 0:00:06]} 39. Rxf6 {[%clk 0:00:05]}  Kxf6 {[%clk 0:00:07]} 40. Bxe4 {[%clk 0:00:05]}  Rd2 {[%clk 0:00:07]} 41. Rf1+ {[%clk 0:00:06]}  Kg7 {[%clk 0:00:07]} 42. Rb1 {[%clk 0:00:06]}  Ne5 {[%clk 0:00:07]} 43. a3 {[%clk 0:00:05]}  Nc4 {[%clk 0:00:07]} 44. b3 {[%clk 0:00:06]}  Nxa3 {[%clk 0:00:04]} 45. Ra1 {[%clk 0:00:06]}  Nc2 {[%clk 0:00:05]} 46. Rxa6 {[%clk 0:00:05]}  Ne3 {[%clk 0:00:05]} 47. Ra7 {[%clk 0:00:03]}  Rb2 {[%clk 0:00:04]} 48. Rb7 {[%clk 0:00:03]}  Rxb3 {[%clk 0:00:04]} 49. Bf3 {[%clk 0:00:03]}  Rb1+ {[%clk 0:00:03]} 50. Kh2 {[%clk 0:00:03]}  Rb2+ {[%clk 0:00:04]} 51. Kh1 {[%clk 0:00:03]}  Kg6 {[%clk 0:00:04]} 52. Be4+ {[%clk 0:00:03]}  Kg7 {[%clk 0:00:03]} 53. Bf3 {[%clk 0:00:03]}  Nf5 {[%clk 0:00:03]} 54. Bd5 {[%clk 0:00:01]}  Nxg3+ {[%clk 0:00:03]} 55. Kg1 {[%clk 0:00:02]}  Ne2+ {[%clk 0:00:04]} 56. Kh1 {[%clk 0:00:02]}  Rb1+ {[%clk 0:00:03]} 57. Kh2 {[%clk 0:00:02]}  Rf1 {[%clk 0:00:02]} 58. Rxb5 {[%clk 0:00:01]}  Rf2+ {[%clk 0:00:03]} 0-1


[Site "https://www.chess.com"]